bitfinex/quotes_ETHUSD_20250822
["timestamp","ask_amount","ask_price","bid_price","bid_amount"]
[1755900386839,1.8202,4849.9,4849.8,0.7653]
[1755900386984,0.1032,4849.9,4849.8,0.7653]
[1755900387180,3.7282,4849.9,4849.8,0.7653]
[1755900387425,0.1032,4849.9,4849.8,0.7653]
[1755900388603,3.625,4850.0,4849.8,0.7653]
[1755900388791,3.625,4850.0,4849.9,0.4473]
[1755900388993,3.625,4850.0,4849.9,0.7453]
[1755900389321,3.625,4850.1,4849.9,0.7453]
[1755900389835,0.1032,4850.3,4850.0,0.4473]
[1755900389983,3.7282,4850.8,4850.2,0.298]
[1755900390326,3.7282,4850.8,4850.3,0.4473]
[1755900390528,3.7282,4850.8,4850.7,0.298]
[1755900390741,3.7282,4850.8,4850.7,0.7453]
[1755900391228,3.7282,4850.8,4849.8,0.02]
[1755900391229,4.10122,4850.8,4850.0,0.4473]
[1755900391443,0.1032,4850.1,4850.0,0.4473]
[1755900391603,0.1032,4850.1,4850.0,0.7453]
[1755900391802,3.7282,4850.1,4850.0,0.7453]
[1755900398698,3.7282,4850.1,4850.0,0.742476]
[1755900402443,3.7282,4850.1,4849.8,0.02]
[1755900402444,4.40342,4850.1,4849.8,0.02]
[1755900402739,1.0976,4850.0,4849.8,0.02]
[1755900402941,0.9624,4849.9,4849.8,0.02]
[1755900403443,1.482603,4849.9,4849.8,0.02]
[1755900403649,2.0409653,4849.9,4849.8,0.02]
[1755900404618,5.6639653,4849.9,4849.8,0.02]
[1755900405111,2.0409653,4849.9,4849.8,0.02]
[1755900405313,5.105603,4849.9,4849.8,0.02]
[1755900406850,1.482603,4849.9,4849.8,0.02]
[1755900407013,5.105603,4849.9,4849.8,0.02]
[1755900407745,1.045003,4849.9,4849.8,0.02]
[1755900407957,0.1032,4849.9,4849.8,0.318]
[1755900408106,3.7252,4849.9,4849.8,0.7746]
[1755900408314,0.1032,4849.9,4849.8,0.7746]
[1755900408748,3.7252,4849.9,4849.8,0.7746]
[1755900409818,0.1032,4849.9,4849.8,0.7746]
[1755900410020,3.7252,4849.9,4849.8,0.7746]
[1755900410745,0.1032,4849.9,4849.8,0.7746]
[1755900410948,3.7262,4849.9,4849.8,0.7746]
[1755900411248,3.7252,4849.9,4849.8,0.7746]
[1755900415360,3.7252,4849.9,4849.8,0.02]
[1755900415653,0.1032,4849.9,4849.8,0.3076]
[1755900415853,3.7252,4849.9,4849.8,0.7642]
[1755900416758,4.0117,4849.9,4849.8,0.02]
[1755900416958,4.55592,4849.9,4849.8,0.02]
[1755900417345,5.00982,4849.9,4849.8,0.02]
[1755900417545,5.66982,4849.9,4849.8,0.02]
[1755900418754,2.04782,4849.9,4849.8,0.02]
[1755900418925,5.66882,4849.9,4849.8,0.02]
[1755900419966,5.66882,4849.9,4849.8,0.01904]
[1755900421738,4.55492,4849.9,4849.8,0.01904]
[1755900421937,0.93392,4849.9,4849.8,0.01904]
[1755900422139,4.0107,4849.9,4849.8,0.01904]
[1755900422340,4.6707,4849.9,4849.8,0.01904]
[1755900423748,1.0497,4849.9,4849.8,0.01904]
[1755900423952,4.6707,4849.9,4849.8,0.01904]
[1755900424164,1.0497,4849.9,4849.8,0.01904]
[1755900424369,4.9556302,4849.9,4849.8,0.01904]
[1755900426168,4.8569302,4849.9,4849.8,0.01904]
[1755900427466,1.2359302,4849.9,4849.8,0.01904]
[1755900427762,7.8559302,4849.9,4849.8,0.01904]
[1755900428137,3.66,4849.8,4847.8,0.01204]
[1755900428335,3.66,4849.6,4847.8,0.01204]
[1755900428866,0.66,4849.4,4847.8,0.01204]
[1755900429066,0.66,4849.2,4847.8,0.01204]
[1755900429230,3.66,4849.2,4847.9,0.4566]
[1755900429565,0.66,4849.0,4847.9,0.4566]
[1755900429766,0.66,4849.0,4848.9,0.2876]
[1755900429934,4.5177,4849.0,4848.9,0.2876]
[1755900430133,1.717,4849.3,4848.9,0.7442]
[1755900430371,4.28,4849.2,4848.9,0.7442]
[1755900430672,3.62,4849.1,4849.0,0.4566]
[1755900430963,1.717,4849.3,4849.2,0.2876]
[1755900431168,5.337,4849.3,4849.2,0.2876]
[1755900431332,1.717,4849.3,4849.2,0.7442]
[1755900431538,5.337,4849.3,4849.2,0.7442]
[1755900431934,1.717,4849.3,4849.2,0.7442]
[1755900432130,5.337,4849.3,4849.2,0.7442]
[1755900434939,5.336,4849.3,4849.2,0.7442]
[1755900436260,5.4392,4849.3,4849.2,0.7442]
[1755900438048,1.8202,4849.3,4849.2,0.7442]
[1755900438239,5.4392,4849.3,4849.2,0.7442]
[1755900439072,5.4392,4849.3,4849.2,0.2876]
[1755900439291,5.98312,4849.3,4848.4,0.4525]
[1755900439453,0.1032,4848.6,4848.4,0.4525]
[1755900439661,0.1032,4848.6,4848.2,0.001]
[1755900439662,0.1032,4848.6,4848.5,0.7462]
[1755900439857,3.7212,4848.6,4848.5,0.7462]
[1755900440062,0.66,4848.5,4848.2,0.001]
[1755900440247,0.9765,4848.3,4848.2,0.001]
[1755900440466,4.5945,4848.3,4848.2,0.001]
[1755900440775,5.0053,4848.3,4848.2,0.001]
[1755900441984,4.5945,4848.3,4848.2,0.001]
[1755900442373,0.9765,4848.3,4848.2,0.001]
[1755900442550,3.618,4848.3,4848.2,0.7472]
[1755900443285,1.717,4849.1,4848.2,0.7472]
[1755900443461,3.618,4849.0,4848.3,0.4525]
[1755900443654,1.717,4849.1,4848.3,0.4525]
[1755900443655,1.717,4849.1,4848.9,0.2937]
[1755900443852,3.618,4849.0,4848.9,0.2937]
[1755900444154,1.717,4849.1,4848.9,0.2937]
[1755900444360,3.618,4849.0,4848.9,0.7462]
[1755900444561,3.618,4849.0,4848.9,0.2937]
[1755900445077,1.717,4849.1,4848.2,0.001]
[1755900445247,3.618,4849.0,4848.2,0.4535]
[1755900445443,0.66,4848.9,4848.2,0.001]
[1755900445894,1.1192,4848.9,4848.2,0.001]
[1755900446056,0.2829,4848.3,4848.2,0.001]
[1755900446379,4.5609,4848.3,4848.2,0.001]
[1755900446574,5.0184,4848.3,4848.2,0.001]
[1755900446779,5.52024,4848.3,4848.2,0.001]
[1755900447452,5.06274,4848.3,4848.2,0.001]
[1755900447957,1.16184,4848.3,4848.2,0.001]
[1755900448272,4.278,4848.3,4848.2,0.001]
[1755900448895,4.277,4848.3,4848.2,0.001]
[1755900450290,4.3802,4848.3,4848.2,0.001]
[1755900450779,0.1032,4848.3,4848.2,0.7472]
[1755900450987,3.7212,4848.3,4848.2,0.7472]
[1755900451285,3.7202,4848.3,4848.2,0.7472]
[1755900451449,0.1032,4848.3,4848.2,0.7472]
[1755900451649,3.7202,4848.3,4848.2,0.7472]
[1755900451846,0.1032,4848.3,4848.2,0.7472]
[1755900452074,0.1032,4848.7,4848.2,0.7472]
[1755900452277,0.1032,4848.7,4848.3,0.21342248]
[1755900452583,0.1032,4848.7,4848.6,0.2937]
[1755900452779,0.1032,4848.7,4848.6,0.4864967]
[1755900453079,0.1032,4848.7,4848.6,0.9389967]
[1755900453279,3.617,4848.9,4848.6,0.9389967]
[1755900453280,0.1032,4848.8,4848.6,0.9389967]
[1755900453482,0.1032,4848.8,4848.7,0.6452967]
[1755900453788,0.1032,4848.8,4848.7,0.9389967]
[1755900457789,0.1032,4848.8,4848.7,0.7462]
[1755900458081,0.1032,4848.8,4848.7,0.93894476]
[1755900458286,1.717,4849.1,4848.7,0.93894476]
[1755900458455,3.7202,4849.0,4848.8,0.19274476]
[1755900458655,0.1032,4849.0,4848.9,0.19274476]
[1755900458857,0.1032,4849.0,4848.9,0.93894476]
[1755900461489,0.1052,4849.0,4848.9,0.93894476]
[1755900466870,0.1052,4849.0,4848.9,0.7462]
[1755900467069,0.1052,4849.0,4848.9,0.48648205]
[1755900467272,0.1052,4849.0,4848.9,0.19278205]
[1755900467473,0.1052,4849.0,4848.9,0.19279211]
[1755900468276,0.1052,4849.0,4848.9,0.48649211]
[1755900469163,0.002,4849.0,4848.9,0.93729211]
[1755900469775,0.002,4849.0,4848.9,1.04340381]
[1755900472165,0.002,4849.0,4848.9,19.88504073]
[1755900472369,0.002,4849.0,4848.9,31.0884175]
[1755900473095,0.002,4849.5,4848.9,31.08844071]
[1755900473296,0.002,4849.5,4849.0,0.19281532]
[1755900473486,0.002,4849.5,4849.4,0.2938]
[1755900473692,0.002,4849.5,4849.4,0.48661532]
[1755900473996,0.002,4849.5,4849.4,1.04061532]
[1755900476170,0.002,4850.3,4849.4,0.93730069]
[1755900476377,0.1052,4850.3,4849.5,0.19270069]
[1755900476575,0.1052,4850.3,4849.6,0.29675076]
[1755900476894,0.1052,4850.3,4849.9,0.2938]
[1755900477091,0.1052,4850.3,4849.9,0.48650069]
[1755900478515,0.1052,4850.3,4849.9,0.48654652]
[1755900479103,0.7423,4850.0,4849.9,0.19274652]
[1755900479306,1.94153,4850.0,4849.9,0.19274652]
[1755900480722,5.55353,4850.0,4849.9,0.19274652]
[1755900481079,3.66,4849.9,4848.8,0.02]
[1755900481280,0.1032,4848.9,4848.6,0.001]
[1755900481484,0.66,4848.6,4847.8,0.01304]
[1755900481692,1.0498,4848.3,4847.8,0.01304]
[1755900482211,1.4828,4848.3,4847.8,0.01304]
[1755900486017,5.0948,4848.3,4847.8,0.01304]
[1755900487001,4.6618,4848.3,4847.8,0.01304]
[1755900487288,5.17128,4848.3,4847.8,0.01304]
[1755900487487,4.6618,4848.3,4847.8,0.01304]
[1755900488419,4.9916,4848.3,4847.8,0.01304]
[1755900489917,4.5586,4848.3,4847.8,0.01304]
[1755900490321,4.9916,4848.3,4847.8,0.01304]
[1755900493114,4.9916,4848.3,4848.2,0.19310286]
[1755900493316,5.50106194,4848.3,4848.2,0.1930789]
[1755900494530,5.69414094,4848.3,4848.2,0.1930789]
[1755900494739,5.50106194,4848.3,4848.2,0.1930789]
[1755900494903,1.88906194,4848.3,4848.2,0.1930789]
[1755900495104,4.9906,4848.3,4848.2,0.1930789]
[1755900496634,4.9906,4848.3,4848.2,0.001]
[1755900497128,10.3596,4848.3,4848.2,0.001]
[1755900497332,13.3596,4848.3,4848.2,0.001]
[1755900497533,5.834,4848.2,4847.8,0.01304]
[1755900497750,5.834,4848.2,4847.2,0.001]
[1755900497751,7.89679136,4847.8,4847.2,0.001]
[1755900497931,13.51239136,4847.8,4847.2,0.001]
[1755900498333,2.834,4847.4,4847.2,0.001]
[1755900498538,24.22599181,4847.3,4847.2,0.001]
[1755900498744,26.83159181,4847.3,4847.2,0.001]
[1755900499034,5.834,4846.9,4844.3,0.4677]
[1755900499242,7.9447,4846.9,4844.3,0.4677]
[1755900499541,9.8118,4846.9,4845.2,0.4677]
[1755900500048,24.31248767,4846.9,4843.9,0.05]
[1755900500278,5.7235198,4846.1,4844.9,0.1915903]
[1755900500535,5.7235198,4846.1,4843.9,0.05]
[1755900500536,4.0541,4845.9,4843.9,0.05]
[1755900501004,4.565601,4845.9,4843.9,0.05]
[1755900501331,4.565601,4845.9,4844.0,0.1914609]
[1755900501501,4.565601,4845.9,4844.1,0.1914609]
[1755900501703,8.176601,4845.9,4844.2,0.1914609]
[1755900502037,4.565601,4845.9,4843.9,0.05]
[1755900502210,9.39736262,4845.9,4843.9,0.05]
[1755900502412,5.78636262,4845.9,4844.1,0.4677]
[1755900502935,5.78636262,4845.9,4844.2,0.1913392]
[1755900503134,8.30856262,4845.9,4845.0,0.4677]
[1755900503308,4.32396162,4845.9,4845.0,0.4677]
[1755900503503,6.65296162,4845.9,4845.3,0.4677]
[1755900503734,3.04196162,4845.9,4845.8,0.3084]
[1755900503936,6.91306162,4845.9,4845.8,0.02]
[1755900504111,6.76136162,4845.9,4845.8,0.02]
[1755900504307,4.22076162,4845.9,4845.8,0.02]
[1755900504509,1.718,4845.9,4845.8,0.7761]
[1755900504707,5.329,4845.9,4845.8,0.7761]
[1755900504906,1.718,4845.9,4845.8,0.7761]
[1755900505643,5.9936,4845.9,4843.9,0.05]
[1755900505868,5.9936,4845.9,4839.3,1.4454]
[1755900505869,30.0,4844.8,4839.5,3.14500106]
[1755900506149,30.0,4844.8,4836.2,6.9100213]
[1755900506150,0.66,4839.1,4836.2,6.9100213]
[1755900506308,14.50068767,4836.3,4834.1,0.31463]
[1755900506646,3.0,4836.1,4834.1,0.31463]
[1755900506845,0.66,4835.8,4832.4,0.33609576]
[1755900507149,0.03951405,4834.2,4832.3,0.31463]
[1755900507318,0.71704612,4832.6,4832.4,20.973]
[1755900507518,0.43192973,4832.5,4831.8,1.718]
[1755900507719,0.38192973,4832.4,4831.9,39.384787]
[1755900507930,0.50501385,4834.1,4832.0,0.02069536]
[1755900508242,0.5,4833.6,4832.0,0.02069536]
[1755900508443,0.5,4833.6,4832.1,0.29272237]
[1755900508644,1.79070095,4832.8,4832.2,0.0206945]
[1755900508846,1.79070095,4832.9,4832.3,0.4677]
[1755900509012,1.07262308,4832.5,4832.4,0.92665871]
[1755900509212,1.07262308,4832.5,4830.1,0.417]
[1755900509213,0.5,4833.1,4830.4,0.10328779]
[1755900509411,0.71331902,4831.4,4830.8,7.0]
[1755900509647,2.50698134,4833.2,4830.9,33.36259853]
[1755900509648,1.06976543,4831.2,4830.9,33.36259853]
[1755900509941,0.5,4834.9,4831.0,33.43113564]
[1755900510141,0.5,4834.9,4833.6,16.44916422]
[1755900510344,0.5,4835.8,4833.8,0.66]
[1755900510511,0.5,4835.3,4834.0,0.66]
[1755900510715,1.79070095,4836.8,4833.7,1.72]
[1755900510716,0.5,4834.7,4833.7,1.72]
[1755900510951,0.5,4834.1,4832.9,1.72]
[1755900511246,4.337,4835.4,4831.8,5.375]
[1755900511247,0.5,4835.7,4833.3,10.13806217]
[1755900511418,0.5,4836.0,4834.4,0.66]
[1755900511622,1.72,4837.8,4834.6,0.66]
[1755900511819,1.72,4837.8,4834.5,47.09093]
[1755900511820,0.5,4836.7,4834.8,0.66]
[1755900512011,0.5,4835.1,4834.9,0.4677]
[1755900512214,0.5,4835.1,4823.9,0.20729796]
[1755900512215,0.5,4834.1,4833.0,1.72]
[1755900512413,4.34,4835.3,4833.4,0.4677]
[1755900512647,0.5,4833.6,4833.4,0.4677]
[1755900512818,0.5,4832.7,4832.4,0.4677]
[1755900513025,0.5,4832.3,4831.9,0.4677]
[1755900513321,0.5,4834.3,4832.0,30.0]
[1755900513523,0.5,4834.4,4832.1,3.488]
[1755900513732,0.5,4834.4,4832.4,0.66]
[1755900513957,0.5,4835.4,4833.2,0.66]
[1755900514173,2.50698134,4837.6,4835.4,33.227012]
[1755900514174,0.32372807,4837.6,4835.4,33.227012]
[1755900514317,0.4613,4839.6,4836.9,10.13707353]
[1755900514318,0.1032,4838.0,4836.9,10.13707353]
[1755900514517,0.07926463,4837.1,4837.0,1.8232]
[1755900514822,0.5,4835.5,4831.4,10.13707353]
[1755900515020,0.5,4835.5,4833.2,10.13707353]
[1755900515221,0.5,4835.0,4833.3,24.6617]
[1755900515454,0.00162,4835.5,4833.5,0.66]
[1755900515657,0.00162,4835.5,4833.6,11.721]
[1755900515658,0.5,4834.7,4833.6,11.721]
[1755900515836,0.5,4834.4,4833.6,1.721]
[1755900516348,0.5,4833.7,4832.8,0.4677]
[1755900516552,0.5,4834.3,4832.9,0.02069151]
[1755900516720,0.00162,4834.4,4832.4,10.13707353]
[1755900516721,0.00162,4834.4,4833.0,2.20939108]
[1755900516916,0.4613,4838.1,4834.4,30.0]
[1755900517112,1.82899521,4838.7,4835.4,0.66]
[1755900517113,0.5,4838.0,4835.4,0.66]
[1755900517311,0.5,4838.0,4835.3,10.13707353]
[1755900517312,0.5,4836.6,4835.5,38.4947]
[1755900517558,0.02075199,4838.6,4835.6,30.4677]
[1755900517759,0.5,4836.7,4835.8,0.02]
[1755900517981,0.5,4836.5,4835.8,0.02]
[1755900518282,0.5,4835.9,4835.8,0.02]
[1755900519042,0.5,4836.5,4835.8,0.02]
[1755900519338,0.5,4835.9,4835.8,0.02]
[1755900521469,0.04,4836.8,4835.8,0.4877]
[1755900521675,0.04,4836.8,4835.9,30.02067867]
[1755900521982,0.04,4836.8,4836.0,30.4677]
[1755900522279,0.02,4837.8,4836.2,0.66]
[1755900522575,0.04075199,4838.8,4837.9,0.66]
[1755900522576,0.02,4838.8,4837.9,0.66]
[1755900522778,0.02,4838.8,4838.0,24.6032]
[1755900522982,0.02,4838.8,4838.1,9.84766927]
[1755900523163,0.02,4838.8,4838.2,26.172]
[1755900523366,0.02,4838.8,4838.7,10.65101502]
[1755900523582,0.02,4838.8,4838.7,22.99037411]
[1755900523783,0.02,4838.8,4838.7,48.55957411]
[1755900523985,0.02,4838.8,4838.7,29.31157411]
[1755900524282,0.02,4838.8,4838.7,17.77457411]
[1755900524481,0.02,4838.8,4838.7,15.65857411]
[1755900524666,0.02,4838.8,4838.7,45.65857411]
[1755900524859,0.02,4838.8,4838.7,45.76177411]
[1755900525055,0.02,4838.8,4838.7,41.40777411]
[1755900525261,0.02,4838.8,4838.7,45.76077411]
[1755900525699,0.02,4838.8,4838.7,15.76077411]
[1755900526361,0.02,4838.8,4838.7,1.90935909]
[1755900526573,0.02,4838.8,4838.7,6.25009652]
[1755900527079,0.02,4838.8,4838.7,1.91009652]
[1755900527283,0.02,4838.8,4838.7,6.24909652]
[1755900527486,0.02,4838.8,4838.7,1.91009652]
[1755900528056,0.02,4838.8,4838.7,2.37529652]
[1755900528256,0.02,4838.8,4838.7,6.24109652]
[1755900528496,0.02,4838.8,4838.7,1.91009652]
[1755900528860,0.02,4838.8,4838.7,2.36229652]
[1755900529283,0.022,4838.8,4838.7,1.91009652]
[1755900529801,0.022,4838.8,4838.7,0.18973933]
[1755900530149,0.022,4838.8,4838.7,0.18984904]
[1755900530820,0.022,4838.8,4838.7,0.21051574]
[1755900531019,0.022,4838.8,4838.7,0.18984904]
[1755900531925,0.4742,4838.8,4838.7,0.18984904]
[1755900532317,0.90463608,4838.8,4838.7,0.18984904]
[1755900532515,1.04509969,4838.8,4838.7,0.18984904]
[1755900532819,0.5,4837.9,4837.8,0.02]
[1755900532995,0.93043608,4837.9,4837.8,0.02]
[1755900533195,1.40338807,4837.9,4837.8,0.02]
[1755900535407,1.40338807,4837.9,4836.8,0.02]
[1755900535408,0.5,4836.9,4836.8,0.02]
[1755900535610,0.93043608,4836.9,4836.8,0.02]
[1755900536128,1.38263608,4836.9,4836.8,0.02]
[1755900536309,1.73238205,4836.9,4836.8,0.02]
[1755900536703,1.03363608,4836.9,4836.8,0.02]
[1755900537451,1.48583608,4836.9,4836.8,0.02]
[1755900538638,0.6032,4836.9,4836.8,0.02]
[1755900539137,0.1032,4837.3,4836.8,0.02]
[1755900539435,0.1032,4837.3,4836.9,0.02067439]
[1755900540341,0.4522,4838.2,4836.9,0.02067439]
[1755900540342,0.6032,4838.2,4837.2,0.1032]
[1755900540514,0.6032,4838.2,4837.6,0.1032]
[1755900540847,0.1032,4838.2,4837.7,0.02067098]
[1755900541013,0.1032,4838.2,4837.6,0.1032]
[1755900541209,0.6032,4838.2,4837.6,0.1032]
[1755900541648,0.1032,4838.2,4837.6,0.1032]
[1755900541946,0.1032,4838.7,4838.0,0.1032]
[1755900542123,0.1032,4838.7,4838.1,0.02066927]
[1755900542324,0.022,4838.8,4838.1,0.02066927]
[1755900543254,0.022,4838.8,4837.6,0.4539]
[1755900543255,0.022,4838.8,4838.4,0.1032]
[1755900543462,0.022,4838.8,4838.5,0.02066756]
[1755900543631,0.022,4838.8,4838.7,0.1032]
[1755900544626,0.5,4838.5,4837.1,1.721]
[1755900545039,0.02075199,4838.4,4837.1,1.721]
[1755900545330,0.5,4838.0,4837.1,1.721]
[1755900545521,0.5,4838.0,4837.1,1.722]
[1755900546139,0.5,4838.0,4837.6,0.001]
[1755900546339,0.5,4837.7,4837.6,0.001]
[1755900546750,0.9522,4837.7,4837.6,0.001]
[1755900548329,1.2215952,4837.7,4837.6,0.001]
[1755900551076,0.5,4837.7,4837.6,0.001]
[1755900551755,1.2677,4837.7,4837.6,0.001]
[1755900553376,0.5,4837.7,4837.6,0.001]
[1755900553967,0.02075199,4838.2,4837.6,0.001]
[1755900554467,0.5,4837.7,4837.6,0.001]
[1755900554664,0.1032,4837.7,4837.6,0.001]
[1755900554870,0.6032,4837.7,4837.6,0.001]
[1755900555249,0.1032,4837.7,4837.6,0.001]
[1755900555449,0.6032,4837.7,4837.6,0.001]
[1755900557584,0.1032,4837.7,4837.6,0.001]
[1755900557748,0.6032,4837.7,4837.6,0.001]
[1755900558586,0.1032,4837.7,4837.6,0.001]
[1755900558780,0.6032,4837.7,4837.6,0.001]
[1755900559657,0.1032,4837.7,4837.6,0.001]
[1755900560252,1.721,4838.3,4837.6,0.3094]
[1755900560461,0.00541854,4837.8,4837.7,0.02067098]
[1755900560773,1.721,4839.0,4837.7,0.02067098]
[1755900560774,0.1032,4838.6,4837.9,0.1032]
[1755900560975,0.5,4838.5,4838.0,0.02066969]
[1755900561173,0.1032,4838.6,4838.4,0.3084]
[1755900561477,0.002,4839.2,4838.4,0.3084]
[1755900561652,0.1252,4838.8,4838.5,0.02066756]
[1755900562052,0.5,4838.5,4838.1,0.4631]
[1755900562294,0.1252,4838.8,4838.4,0.3084]
[1755900562967,0.5,4838.7,4838.4,0.3084]
[1755900563351,0.022,4838.8,4838.6,0.1032]
[1755900563565,0.022,4838.8,4838.7,0.7715]
[1755900564682,0.022,4838.8,4838.7,0.8953667]
[1755900565267,0.022,4838.8,4838.7,0.8944067]
[1755900565461,0.022,4838.8,4838.7,30.87374]
[1755900565866,0.022,4838.8,4838.7,31.53374]
[1755900566260,0.27778511,4840.7,4838.7,31.72661139]
[1755900566485,0.1032,4841.1,4838.7,31.72661139]
[1755900566486,0.27778511,4840.6,4838.8,30.65597139]
[1755900566789,0.27778511,4840.5,4840.4,0.1032]
[1755900566974,0.59428511,4840.5,4840.4,0.19287139]
[1755900567489,0.27778511,4840.5,4840.4,0.19287139]
[1755900568590,0.1232,4840.8,4840.4,0.64486773]
[1755900568893,0.02,4840.8,4840.5,9.38670551]
[1755900569059,0.02,4840.8,4840.7,0.3084]
[1755900569389,0.29778511,4840.8,4840.7,0.19287139]
[1755900569556,0.61428511,4840.8,4840.7,0.19287139]
[1755900570189,1.08278511,4840.8,4840.7,0.19287139]
[1755900574360,1.19106362,4840.8,4840.7,0.19287139]
[1755900574901,1.19106362,4840.8,4840.7,0.19216701]
[1755900575460,0.27778511,4840.5,4839.4,1.721]
[1755900575660,0.27778511,4840.0,4839.5,0.19213903]
[1755900575893,0.27778511,4840.0,4839.6,0.19213903]
[1755900576187,0.27778511,4840.7,4839.9,0.3084]
[1755900576395,0.27778511,4840.7,4840.0,0.21280018]
[1755900576601,0.02,4840.8,4840.6,0.3084]
[1755900576912,0.02,4840.8,4840.7,0.19213903]
[1755900577196,0.02,4840.8,4840.7,0.50053903]
[1755900577496,0.02,4840.8,4840.7,0.96363903]
[1755900577793,1.72,4842.1,4840.8,30.0]
[1755900577989,0.4685,4842.6,4840.9,5.0596996]
[1755900578190,0.02075199,4842.5,4841.0,0.21269917]
[1755900578360,0.02075199,4842.5,4841.1,0.19204229]
[1755900578560,0.02075199,4842.5,4841.2,0.21269832]
[1755900578787,0.31978511,4841.8,4841.3,0.29524229]
[1755900578992,0.042,4841.8,4841.4,0.19204229]
[1755900579296,0.042,4841.8,4841.7,0.3084]
[1755900579497,0.042,4841.8,4841.7,0.50044229]
[1755900579867,0.042,4841.8,4841.7,1.06674229]
[1755900580286,0.042,4841.8,4841.7,1.08739619]
[1755900580494,0.042,4841.8,4841.7,1.06674229]
[1755900583203,0.042,4841.8,4841.7,1.42653326]
[1755900583501,0.042,4841.8,4841.7,31.40587936]
[1755900584165,0.042,4841.8,4841.7,31.40560276]
[1755900584767,0.042,4841.8,4841.7,31.06646569]
[1755900585064,0.042,4841.8,4841.7,1.06646654]
[1755900585900,0.042,4841.8,4841.7,31.06646654]
[1755900586299,0.042,4841.8,4841.7,4.68436654]
[1755900587777,0.27778511,4842.4,4841.7,4.68436654]
[1755900588002,0.29778511,4842.8,4841.8,0.19176654]
[1755900588177,0.27778511,4842.4,4841.9,0.19176654]
[1755900588375,0.27778511,4842.4,4842.0,0.19176654]
[1755900588607,0.27778511,4842.4,4842.3,0.1032]
[1755900588911,0.27778511,4842.4,4842.3,0.29496654]
[1755900589791,0.57668511,4842.4,4842.3,0.29496654]
[1755900589996,0.27778511,4842.4,4842.3,0.29496654]
[1755900590400,0.27778511,4842.4,4842.3,0.29531499]
[1755900591899,0.27778511,4842.4,4839.7,1.24]
[1755900591900,0.57668511,4842.4,4839.7,0.001]
[1755900592099,0.27778511,4841.0,4840.2,0.1032]
[1755900592431,0.27778511,4840.0,4839.9,0.1032]
[1755900592583,0.57668511,4840.0,4839.9,0.1032]
[1755900592937,0.27778511,4840.0,4839.9,0.1032]
[1755900596613,0.27778511,4840.3,4839.9,0.1032]
[1755900596829,0.5545,4840.6,4839.9,0.1032]
[1755900596830,0.27778511,4840.0,4839.9,0.1032]
[1755900597318,0.27778511,4840.3,4839.9,0.1032]
[1755900597520,0.5545,4840.6,4839.9,0.1032]
[1755900597521,0.27778511,4840.0,4839.9,0.1032]
[1755900600220,0.57668511,4840.0,4839.9,0.1032]
[1755900600520,0.57668511,4840.0,4839.8,0.001]
[1755900600521,1.02798511,4840.0,4839.8,0.001]
[1755900600692,0.12395199,4839.9,4839.8,0.001]
[1755900600890,1.53415199,4839.9,4839.8,0.001]
[1755900601092,1.2273457,4839.9,4839.8,0.001]
[1755900602398,1.50513081,4839.9,4839.8,0.001]
[1755900602895,1.2273457,4839.9,4839.8,0.001]
[1755900603427,1.50513081,4839.9,4839.8,0.001]
[1755900603639,1.2273457,4839.9,4839.8,0.001]
[1755900603818,1.50513081,4839.9,4839.8,0.001]
[1755900604128,1.2273457,4839.9,4839.8,0.001]
[1755900604628,0.38098511,4839.9,4839.8,0.001]
[1755900604935,0.1032,4840.2,4839.8,0.3013]
[1755900605227,0.1032,4840.4,4839.8,0.739]
[1755900605453,0.27778511,4839.9,4839.8,0.739]
[1755900605628,0.1032,4840.4,4839.8,0.739]
[1755900605830,0.27778511,4840.6,4839.9,30.02066158]
[1755900606019,0.27778511,4840.6,4840.5,0.3003]
[1755900606218,0.27778511,4840.6,4840.0,30.0]
[1755900606219,0.27778511,4840.6,4840.1,0.4377]
[1755900606396,0.27778511,4840.3,4840.1,0.4377]
[1755900606600,0.27778511,4840.3,4840.2,0.3003]
[1755900606801,0.27778511,4840.3,4840.2,0.8412]
[1755900606993,0.27778511,4840.6,4840.2,0.8412]
[1755900607199,0.27778511,4840.3,4840.2,0.8412]
[1755900607398,0.27778511,4840.6,4840.2,0.8412]
[1755900607696,0.27778511,4840.6,4840.5,0.1032]
[1755900608033,0.27778511,4839.9,4839.8,0.021]
[1755900609500,0.1032,4840.2,4839.8,0.021]
[1755900609702,0.27778511,4840.3,4839.9,0.02066158]
[1755900610136,0.27778511,4840.3,4839.9,0.45836158]
[1755900611424,0.27778511,4840.0,4839.9,0.45836158]
[1755900611598,0.27778511,4840.3,4839.9,0.75866158]
[1755900612049,0.27778511,4840.3,4839.9,5.01866158]
[1755900612208,0.27778511,4840.3,4840.0,0.4377]
[1755900612414,0.27778511,4840.3,4840.1,0.02066073]
[1755900612721,0.02,4840.8,4839.8,0.021]
[1755900612722,0.27778511,4839.9,4839.8,0.021]
[1755900614036,0.02,4840.8,4839.8,0.34196201]
[1755900614240,0.1032,4840.5,4839.8,0.34196201]
[1755900614437,0.27778511,4839.9,4839.8,0.3213]
[1755900614655,0.27778511,4839.9,4839.8,0.759]
[1755900614855,0.27778511,4839.9,4839.8,0.3213]
[1755900615444,0.57668511,4839.9,4839.8,0.021]
[1755900617547,1.13118511,4839.9,4839.8,0.021]